[Event "*** Titled Tuesday 3|2 Blitz (Late)"]
[Site "Chess.com"]
[Date "2017.01.03"]
[Round "5"]
[White "SabinaFoisor"]
[Black "nickmatta"]
[Result "1-0"]
[WhiteElo "2245"]
[BlackElo "2324"]
[TimeControl "180+2"]
[EndTime "17:55:27 PST"]
[Termination "SabinaFoisor won by resignation"]

1. d4 {[%clk 0:03:02]} 1... Nf6 {[%clk 0:02:59.6]} 2. c4 {[%clk 0:03:02.4]} 2...
g6 {[%clk 0:03:00.4]} 3. Nc3 {[%clk 0:03:02.6]} 3... d5 {[%clk 0:03:01.5]} 4.
Bg5 {[%clk 0:03:02.2]} 4... Ne4 {[%clk 0:02:58.6]} 5. Bh4 {[%clk 0:03:02.7]}
5... Nxc3 {[%clk 0:02:57.8]} 6. bxc3 {[%clk 0:03:03.1]} 6... dxc4 {[%clk
0:02:55.4]} 7. e3 {[%clk 0:03:01.3]} 7... b5 {[%clk 0:02:46.9]} 8. a4 {[%clk
0:03:01.5]} 8... Bb7 {[%clk 0:02:09.8]} 9. axb5 {[%clk 0:02:59.5]} 9... Bg7
{[%clk 0:02:10.9]} 10. Nf3 {[%clk 0:02:57.3]} 10... Qd5 {[%clk 0:02:06.4]} 11.
Qa4 {[%clk 0:02:53.6]} 11... Qh5 {[%clk 0:01:58.4]} 12. Bg3 {[%clk 0:02:22.5]}
12... O-O {[%clk 0:01:45.8]} 13. Bxc4 {[%clk 0:02:16.1]} 13... Bxf3 {[%clk
0:01:41.6]} 14. gxf3 {[%clk 0:02:18]} 14... Qxf3 {[%clk 0:01:41.3]} 15. O-O
{[%clk 0:02:15.7]} 15... Nd7 {[%clk 0:01:42.1]} 16. Qc2 {[%clk 0:02:04.9]} 16...
Nf6 {[%clk 0:01:27.8]} 17. Be2 {[%clk 0:01:59.6]} 17... Qe4 {[%clk 0:01:20.2]}
18. Qxe4 {[%clk 0:01:51.1]} 18... Nxe4 {[%clk 0:01:22.1]} 19. Bf3 {[%clk
0:01:52.1]} 19... Nd2 {[%clk 0:00:46]} 20. Bxa8 {[%clk 0:01:52]} 20... Nxf1
{[%clk 0:00:47.4]} 21. Kxf1 {[%clk 0:01:50.8]} 21... Rxa8 {[%clk 0:00:47.8]} 22.
Bxc7 {[%clk 0:01:50.3]} 1-0

[Event "*** Titled Tuesday 3|2 Blitz (Late)"]
[Site "Chess.com"]
[Date "2017.01.03"]
[Round "5"]
[White "boredoldman"]
[Black "QuintilianoR"]
[Result "1-0"]
[WhiteElo "2517"]
[BlackElo "2524"]
[TimeControl "180+2"]
[EndTime "17:55:48 PST"]
[Termination "boredoldman won by resignation"]

1. d3 {[%clk 0:03:01.8]} 1... Nf6 {[%clk 0:02:57.8]} 2. Nf3 {[%clk 0:02:58.1]}
2... c5 {[%clk 0:02:58.9]} 3. c4 {[%clk 0:02:58.3]} 3... Nc6 {[%clk 0:02:59.9]}
4. Nc3 {[%clk 0:02:59.2]} 4... g6 {[%clk 0:03:01.4]} 5. g3 {[%clk 0:02:59.8]}
5... Bg7 {[%clk 0:03:02.8]} 6. Bg2 {[%clk 0:02:57.7]} 6... O-O {[%clk 0:03:04]}
7. O-O {[%clk 0:02:59.4]} 7... d5 {[%clk 0:03:05.5]} 8. cxd5 {[%clk 0:02:56.5]}
8... Nxd5 {[%clk 0:03:07.4]} 9. Nxd5 {[%clk 0:02:21.7]} 9... Qxd5 {[%clk
0:03:09.3]} 10. Be3 {[%clk 0:02:20]} 10... Qd6 {[%clk 0:03:09.7]} 11. Rc1 {[%clk
0:02:19.5]} 11... b6 {[%clk 0:03:10.5]} 12. d4 {[%clk 0:02:20.2]} 12... cxd4
{[%clk 0:02:42.7]} 13. Nxd4 {[%clk 0:02:22.1]} 13... Nxd4 {[%clk 0:02:43.6]} 14.
Bxa8 {[%clk 0:02:17.6]} 14... Bg4 {[%clk 0:02:42.7]} 15. Bf3 {[%clk 0:02:14.9]}
15... Nxf3+ {[%clk 0:02:34]} 16. exf3 {[%clk 0:02:16.8]} 16... Qxd1 {[%clk
0:02:35.5]} 17. Rfxd1 {[%clk 0:02:14.3]} 17... Bxf3 {[%clk 0:02:36.6]} 18. Rd7
{[%clk 0:02:15.4]} 18... Bxb2 {[%clk 0:02:34.6]} 19. Rb1 {[%clk 0:02:12.8]}
19... Bf6 {[%clk 0:02:34]} 20. Rxa7 {[%clk 0:02:14.1]} 20... Rd8 {[%clk
0:02:32.6]} 21. Bxb6 {[%clk 0:02:13.7]} 21... Rd2 {[%clk 0:02:31.7]} 22. Be3
{[%clk 0:02:14.4]} 22... Rc2 {[%clk 0:02:31.7]} 23. a4 {[%clk 0:02:14.8]} 23...
h5 {[%clk 0:02:32.1]} 24. a5 {[%clk 0:02:14.3]} 24... Ra2 {[%clk 0:02:33.2]} 25.
Bb6 {[%clk 0:02:13.6]} 25... h4 {[%clk 0:02:29.3]} 26. gxh4 {[%clk 0:02:13.1]}
26... Bxh4 {[%clk 0:02:30]} 27. Bd4 {[%clk 0:02:12.8]} 27... Kh7 {[%clk
0:02:12.6]} 28. Rb8 {[%clk 0:02:12]} 28... g5 {[%clk 0:02:06.6]} 29. Rxe7 {[%clk
0:02:09]} 29... Kg6 {[%clk 0:02:04.2]} 30. Rb6+ {[%clk 0:02:04.4]} 30... Kh5
{[%clk 0:02:04.5]} 31. Rxf7 {[%clk 0:02:02.1]} 31... Bd5 {[%clk 0:01:43.8]} 32.
Rh7+ {[%clk 0:01:53.9]} 32... Kg4 {[%clk 0:01:43.2]} 33. Rb5 {[%clk 0:01:53.6]}
33... Kf3 {[%clk 0:01:27.9]} 34. Rxd5 {[%clk 0:01:38.2]} 34... Bxf2+ {[%clk
0:01:24.4]} 35. Kf1 {[%clk 0:01:39.2]} 35... Bxd4 {[%clk 0:01:24.4]} 36. Rh3+
{[%clk 0:01:36.9]} 36... Kg4 {[%clk 0:01:20.8]} 37. Rg3+ {[%clk 0:01:36.3]} 1-0

[Event "*** Titled Tuesday 3|2 Blitz (Late)"]
[Site "Chess.com"]
[Date "2017.01.03"]
[Round "5"]
[White "FLchessplayer"]
[Black "dretch"]
[Result "0-1"]
[WhiteElo "2102"]
[BlackElo "2578"]
[TimeControl "180+2"]
[EndTime "17:55:50 PST"]
[Termination "dretch won by resignation"]

1. e4 {[%clk 0:01:33.9]} 1... e6 {[%clk 0:03:00.4]} 2. d4 {[%clk 0:01:34.3]}
2... d5 {[%clk 0:03:01.1]} 3. exd5 {[%clk 0:01:35.3]} 3... exd5 {[%clk
0:03:02.1]} 4. Nf3 {[%clk 0:01:36.6]} 4... Bd6 {[%clk 0:03:01.2]} 5. h3 {[%clk
0:01:36.9]} 5... Ne7 {[%clk 0:02:58.7]} 6. Bd3 {[%clk 0:01:37.6]} 6... O-O
{[%clk 0:02:57.9]} 7. c3 {[%clk 0:01:38.6]} 7... Bf5 {[%clk 0:02:58.3]} 8. Qc2
{[%clk 0:01:38.4]} 8... Bxd3 {[%clk 0:02:58]} 9. Qxd3 {[%clk 0:01:39.6]} 9...
Nbc6 {[%clk 0:02:58.3]} 10. Bg5 {[%clk 0:01:37.3]} 10... Qd7 {[%clk 0:02:57.5]}
11. Bxe7 {[%clk 0:01:34]} 11... Qxe7+ {[%clk 0:02:55.2]} 12. Qe2 {[%clk
0:01:34.7]} 12... Qf6 {[%clk 0:02:48.6]} 13. O-O {[%clk 0:01:33.8]} 13... Rfe8
{[%clk 0:02:46.3]} 14. Qb5 {[%clk 0:01:28]} 14... a6 {[%clk 0:02:41.4]} 15. Qxd5
{[%clk 0:01:20.2]} 15... Qg6 {[%clk 0:02:32.3]} 16. Qb3 {[%clk 0:01:17.2]} 16...
Na5 {[%clk 0:02:30.9]} 17. Qd1 {[%clk 0:01:17.4]} 17... Nc4 {[%clk 0:02:29.5]}
18. b3 {[%clk 0:01:17.5]} 18... Nb2 {[%clk 0:02:28.4]} 19. Qc1 {[%clk
0:01:13.8]} 19... Nd3 {[%clk 0:02:29.2]} 20. Qd2 {[%clk 0:01:14.2]} 20... Nf4
{[%clk 0:02:30]} 21. Nh4 {[%clk 0:01:04]} 21... Qh5 {[%clk 0:02:24.2]} 22. g3
{[%clk 0:00:40.6]} 22... Nxh3+ {[%clk 0:02:25]} 23. Kg2 {[%clk 0:00:37.4]} 23...
Nf4+ {[%clk 0:02:26]} 24. Kg1 {[%clk 0:00:38]} 24... Re2 {[%clk 0:02:25.1]} 25.
Qd1 {[%clk 0:00:34.9]} 25... Nh3+ {[%clk 0:02:25.2]} 26. Kg2 {[%clk 0:00:35.1]}
26... Nxf2 {[%clk 0:02:20.4]} 27. Qxe2 {[%clk 0:00:27]} 27... Qxe2 {[%clk
0:02:20.3]} 28. Rxf2 {[%clk 0:00:28.2]} 28... Qd1 {[%clk 0:02:17.8]} 29. Nf5
{[%clk 0:00:20.7]} 29... Re8 {[%clk 0:02:16]} 30. Nxd6 {[%clk 0:00:17.6]} 30...
cxd6 {[%clk 0:02:16.6]} 31. a4 {[%clk 0:00:12.4]} 31... Re1 {[%clk 0:02:16.5]}
0-1

[Event "*** Titled Tuesday 3|2 Blitz (Late)"]
[Site "Chess.com"]
[Date "2017.01.03"]
[Round "5"]
[White "Tonychess32"]
[Black "Houdinovic"]
[Result "1-0"]
[WhiteElo "2423"]
[BlackElo "2328"]
[TimeControl "180+2"]
[EndTime "17:56:00 PST"]
[Termination "Tonychess32 won by resignation"]

1. e4 {[%clk 0:03:01.9]} 1... e6 {[%clk 0:02:59.6]} 2. d4 {[%clk 0:03:02.4]}
2... d5 {[%clk 0:02:56.6]} 3. Nd2 {[%clk 0:03:03.5]} 3... Nc6 {[%clk 0:02:47.3]}
4. Ngf3 {[%clk 0:03:03.4]} 4... Nf6 {[%clk 0:02:48.2]} 5. e5 {[%clk 0:03:03.6]}
5... Nd7 {[%clk 0:02:49.7]} 6. c3 {[%clk 0:03:01.8]} 6... f6 {[%clk 0:02:50.5]}
7. exf6 {[%clk 0:03:02.3]} 7... Qxf6 {[%clk 0:02:52.4]} 8. Bd3 {[%clk
0:03:01.9]} 8... e5 {[%clk 0:02:51.1]} 9. O-O {[%clk 0:03:00.9]} 9... e4 {[%clk
0:02:51.9]} 10. Re1 {[%clk 0:02:59.5]} 10... Be7 {[%clk 0:02:48.8]} 11. Nxe4
{[%clk 0:02:58.8]} 11... dxe4 {[%clk 0:02:49.7]} 12. Rxe4 {[%clk 0:02:59.8]}
12... O-O {[%clk 0:02:35.8]} 13. Bg5 {[%clk 0:02:57.5]} 13... Qd6 {[%clk
0:01:35]} 14. Bc4+ {[%clk 0:02:49.4]} 14... Kh8 {[%clk 0:01:34.6]} 15. Re6
{[%clk 0:02:50.5]} 15... Qxe6 {[%clk 0:01:15.7]} 16. Bxe6 {[%clk 0:02:52.4]}
16... Nf6 {[%clk 0:01:16.3]} 17. Bxc8 {[%clk 0:02:51.8]} 17... Raxc8 {[%clk
0:01:18.2]} 18. Ne5 {[%clk 0:02:50.4]} 18... Nd5 {[%clk 0:00:43.2]} 19. Bxe7
{[%clk 0:02:44.8]} 19... Ncxe7 {[%clk 0:00:39.8]} 20. Qb3 {[%clk 0:02:41.1]}
20... b6 {[%clk 0:00:39]} 21. c4 {[%clk 0:02:40]} 21... Nf4 {[%clk 0:00:39.9]}
22. Re1 {[%clk 0:02:30.6]} 22... Nf5 {[%clk 0:00:37.9]} 23. c5 {[%clk
0:02:27.1]} 23... g6 {[%clk 0:00:31.9]} 24. d5 {[%clk 0:02:16.5]} 24... Nd4
{[%clk 0:00:29.3]} 25. Qc4 {[%clk 0:02:12.5]} 25... bxc5 {[%clk 0:00:30.4]} 26.
Qxc5 {[%clk 0:02:10.8]} 26... Nde2+ {[%clk 0:00:19.5]} 27. Kf1 {[%clk
0:02:10.5]} 27... Rfe8 {[%clk 0:00:20.7]} 28. g3 {[%clk 0:01:58.8]} 28... Rxe5
{[%clk 0:00:06.5]} 29. gxf4 {[%clk 0:01:59.8]} 1-0

[Event "*** Titled Tuesday 3|2 Blitz (Late)"]
[Site "Chess.com"]
[Date "2017.01.03"]
[Round "5"]
[White "Buffy7"]
[Black "nonscitis"]
[Result "1-0"]
[WhiteElo "2495"]
[BlackElo "2328"]
[TimeControl "180+2"]
[EndTime "17:56:48 PST"]
[Termination "Buffy7 won by resignation"]

1. Nf3 {[%clk 0:02:59.6]} 1... Nf6 {[%clk 0:02:57.9]} 2. g3 {[%clk 0:03:01.1]}
2... b5 {[%clk 0:02:57.2]} 3. Bg2 {[%clk 0:03:03]} 3... Bb7 {[%clk 0:02:57.1]}
4. O-O {[%clk 0:03:04.9]} 4... e6 {[%clk 0:02:54.8]} 5. d3 {[%clk 0:03:06.8]}
5... d5 {[%clk 0:02:54.2]} 6. Nbd2 {[%clk 0:03:05.6]} 6... Be7 {[%clk
0:02:54.2]} 7. c4 {[%clk 0:03:06.7]} 7... bxc4 {[%clk 0:02:53.4]} 8. dxc4 {[%clk
0:03:08.6]} 8... O-O {[%clk 0:02:53.8]} 9. e3 {[%clk 0:03:04.4]} 9... Nbd7
{[%clk 0:02:51.9]} 10. b3 {[%clk 0:03:05]} 10... Nc5 {[%clk 0:02:49.7]} 11. Qe2
{[%clk 0:03:02.4]} 11... dxc4 {[%clk 0:02:44.3]} 12. Nxc4 {[%clk 0:03:04.3]}
12... Qd3 {[%clk 0:02:41.4]} 13. Qxd3 {[%clk 0:03:04.7]} 13... Nxd3 {[%clk
0:02:42.1]} 14. Rd1 {[%clk 0:03:06.3]} 14... Rad8 {[%clk 0:02:32.2]} 15. Nd4
{[%clk 0:02:48.5]} 15... Bxg2 {[%clk 0:02:17.3]} 16. Kxg2 {[%clk 0:02:50.4]}
16... Nb4 {[%clk 0:01:45.9]} 17. Ba3 {[%clk 0:02:47.6]} 17... Nfd5 {[%clk
0:01:43.5]} 18. Bxb4 {[%clk 0:02:34.6]} 18... Nxb4 {[%clk 0:01:42.6]} 19. Ne5
{[%clk 0:02:17]} 19... Bf6 {[%clk 0:01:15.9]} 20. Nec6 {[%clk 0:02:00.6]} 20...
Nxc6 {[%clk 0:01:11]} 21. Nxc6 {[%clk 0:02:02.5]} 21... Ra8 {[%clk 0:00:38.9]}
22. Rac1 {[%clk 0:02:01.7]} 22... a5 {[%clk 0:00:39.5]} 23. Rc4 {[%clk
0:02:01.4]} 23... h5 {[%clk 0:00:37.7]} 24. e4 {[%clk 0:01:57]} 24... e5 {[%clk
0:00:24.1]} 25. Rd7 {[%clk 0:01:56.3]} 25... Rfc8 {[%clk 0:00:21.5]} 26. a4
{[%clk 0:01:55.8]} 26... Ra6 {[%clk 0:00:20.2]} 27. Rc5 {[%clk 0:01:52.4]} 27...
Rb6 {[%clk 0:00:19.4]} 28. Nxa5 {[%clk 0:01:53.4]} 28... Ra8 {[%clk 0:00:15.7]}
29. Rdxc7 {[%clk 0:01:49.6]} 29... Kh7 {[%clk 0:00:16.1]} 30. Rxf7 {[%clk
0:01:38.4]} 30... Kg6 {[%clk 0:00:16.6]} 31. Rfc7 {[%clk 0:01:38.8]} 31... h4
{[%clk 0:00:17]} 32. Kh3 {[%clk 0:01:38.9]} 32... hxg3 {[%clk 0:00:16.7]} 33.
hxg3 {[%clk 0:01:40.8]} 33... Rb4 {[%clk 0:00:17.2]} 34. f3 {[%clk 0:01:39.1]}
34... Rd8 {[%clk 0:00:16.2]} 35. Nc6 {[%clk 0:01:37]} 1-0

[Event "*** Titled Tuesday 3|2 Blitz (Late)"]
[Site "Chess.com"]
[Date "2017.01.03"]
[Round "5"]
[White "chito89"]
[Black "Frolik67"]
[Result "1-0"]
[WhiteElo "2504"]
[BlackElo "2315"]
[TimeControl "180+2"]
[EndTime "17:56:52 PST"]
[Termination "chito89 won by checkmate"]

1. e4 {[%clk 0:03:02]} 1... e6 {[%clk 0:02:58.8]} 2. Qe2 {[%clk 0:02:59.6]} 2...
Ne7 {[%clk 0:02:59.3]} 3. g3 {[%clk 0:02:57.5]} 3... d5 {[%clk 0:03:00.3]} 4. d3
{[%clk 0:02:58.6]} 4... c5 {[%clk 0:03:00.2]} 5. Bg2 {[%clk 0:02:57.1]} 5...
Nbc6 {[%clk 0:03:01.4]} 6. Nf3 {[%clk 0:02:52.4]} 6... g6 {[%clk 0:02:53.9]} 7.
O-O {[%clk 0:02:50.7]} 7... Bg7 {[%clk 0:02:54.8]} 8. c3 {[%clk 0:02:50.9]} 8...
O-O {[%clk 0:02:55.6]} 9. Re1 {[%clk 0:02:51.8]} 9... b5 {[%clk 0:02:56.2]} 10.
e5 {[%clk 0:02:52]} 10... a5 {[%clk 0:02:55.2]} 11. h4 {[%clk 0:02:43.1]} 11...
a4 {[%clk 0:02:55.3]} 12. a3 {[%clk 0:02:36.8]} 12... b4 {[%clk 0:02:52.7]} 13.
Bf4 {[%clk 0:02:36.9]} 13... Ba6 {[%clk 0:02:52.2]} 14. Nbd2 {[%clk 0:02:34.7]}
14... Qa5 {[%clk 0:02:48.8]} 15. c4 {[%clk 0:02:33]} 15... Rfd8 {[%clk
0:02:42.3]} 16. Nf1 {[%clk 0:02:30.6]} 16... Rab8 {[%clk 0:02:40.8]} 17. h5
{[%clk 0:02:29]} 17... Nf5 {[%clk 0:02:31.9]} 18. hxg6 {[%clk 0:02:25.5]} 18...
hxg6 {[%clk 0:02:31.8]} 19. Ne3 {[%clk 0:02:21]} 19... Ncd4 {[%clk 0:02:22.4]}
20. Nxd4 {[%clk 0:02:20.8]} 20... Nxd4 {[%clk 0:02:21.5]} 21. Qg4 {[%clk
0:02:16.3]} 21... bxa3 {[%clk 0:02:22.1]} 22. bxa3 {[%clk 0:02:16]} 22... dxc4
{[%clk 0:02:23.1]} 23. dxc4 {[%clk 0:02:11]} 23... Rb2 {[%clk 0:02:13.4]} 24.
Qh4 {[%clk 0:02:10.6]} 24... Ne2+ {[%clk 0:02:02.2]} 25. Rxe2 {[%clk 0:02:07.2]}
25... Rxe2 {[%clk 0:02:02.6]} 26. Ng4 {[%clk 0:02:02.7]} 26... Re1+ {[%clk
0:01:44.8]} 27. Rxe1 {[%clk 0:02:02.3]} 27... Qxe1+ {[%clk 0:01:46.7]} 28. Kh2
{[%clk 0:02:00.5]} 28... Rd1 {[%clk 0:01:42.6]} 29. Bh6 {[%clk 0:01:52.7]} 29...
f5 {[%clk 0:00:22.7]} 30. Bxg7 {[%clk 0:01:35.5]} 30... Kxg7 {[%clk 0:00:18.2]}
31. Qe7+ {[%clk 0:01:30.8]} 31... Kh8 {[%clk 0:00:17.8]} 32. Qf8+ {[%clk
0:01:30.5]} 32... Kh7 {[%clk 0:00:18.8]} 33. Nf6# {[%clk 0:01:31.3]} 1-0

[Event "*** Titled Tuesday 3|2 Blitz (Late)"]
[Site "Chess.com"]
[Date "2017.01.03"]
[Round "5"]
[White "jcgs1030"]
[Black "DuleMudule"]
[Result "0-1"]
[WhiteElo "2314"]
[BlackElo "2512"]
[TimeControl "180+2"]
[EndTime "17:57:05 PST"]
[Termination "DuleMudule won by resignation"]

1. e4 {[%clk 0:03:02]} 1... c5 {[%clk 0:02:56.7]} 2. Nf3 {[%clk 0:03:00.2]} 2...
Nc6 {[%clk 0:02:57.8]} 3. Bb5 {[%clk 0:03:00.9]} 3... e6 {[%clk 0:02:59.1]} 4.
Bxc6 {[%clk 0:03:00]} 4... bxc6 {[%clk 0:03:01]} 5. O-O {[%clk 0:03:00.9]} 5...
Ne7 {[%clk 0:03:02.5]} 6. b3 {[%clk 0:03:00.8]} 6... Ng6 {[%clk 0:03:02.6]} 7.
Bb2 {[%clk 0:03:01.6]} 7... f6 {[%clk 0:03:03.7]} 8. e5 {[%clk 0:02:56.8]} 8...
Be7 {[%clk 0:03:03.5]} 9. Re1 {[%clk 0:02:55.9]} 9... O-O {[%clk 0:03:04.6]} 10.
Na3 {[%clk 0:02:51.3]} 10... fxe5 {[%clk 0:03:05.5]} 11. Nxe5 {[%clk 0:02:50.7]}
11... Nxe5 {[%clk 0:03:05.5]} 12. Bxe5 {[%clk 0:02:50.4]} 12... d6 {[%clk
0:03:06.9]} 13. Bc3 {[%clk 0:02:48.8]} 13... e5 {[%clk 0:03:08.5]} 14. d3 {[%clk
0:02:47.9]} 14... Bh4 {[%clk 0:03:09.2]} 15. g3 {[%clk 0:02:46.5]} 15... Be7
{[%clk 0:03:07.6]} 16. Nc4 {[%clk 0:02:46.4]} 16... Qd7 {[%clk 0:03:02.1]} 17.
Qe2 {[%clk 0:02:30.1]} 17... Qh3 {[%clk 0:02:53]} 18. Qf1 {[%clk 0:02:28.1]}
18... Qh5 {[%clk 0:02:52.4]} 19. Qg2 {[%clk 0:02:19.9]} 19... Bg4 {[%clk
0:02:49.1]} 20. Nd2 {[%clk 0:02:10.4]} 20... Bg5 {[%clk 0:02:49.7]} 21. Ne4
{[%clk 0:01:22]} 21... Bf3 {[%clk 0:02:44.5]} 22. Qf1 {[%clk 0:01:22.1]} 22...
Be7 {[%clk 0:02:45.4]} 23. Nd2 {[%clk 0:00:57.7]} 23... Bg4 {[%clk 0:02:43.6]}
24. Qg2 {[%clk 0:00:58.1]} 24... Rac8 {[%clk 0:02:39.5]} 25. f4 {[%clk
0:00:55.4]} 25... Bh3 {[%clk 0:02:33.1]} 26. Qe2 {[%clk 0:00:55.4]} 26... Bg4
{[%clk 0:02:32.5]} 27. Qg2 {[%clk 0:00:56.8]} 27... Rf5 {[%clk 0:02:14.5]} 28.
fxe5 {[%clk 0:00:56.2]} 28... Rcf8 {[%clk 0:02:15]} 29. Rf1 {[%clk 0:00:53.8]}
29... Bh3 {[%clk 0:02:12.6]} 30. Rxf5 {[%clk 0:00:53.4]} 30... Rxf5 {[%clk
0:02:12.1]} 31. Qxc6 {[%clk 0:00:53.2]} 31... Qe2 {[%clk 0:02:10.9]} 32. Qd5+
{[%clk 0:00:37.9]} 32... Kh8 {[%clk 0:02:08.6]} 33. Qe4 {[%clk 0:00:34.5]} 33...
Qf2+ {[%clk 0:02:05.9]} 34. Kh1 {[%clk 0:00:35.4]} 34... d5 {[%clk 0:01:51.4]}
35. Qxd5 {[%clk 0:00:35.3]} 35... h5 {[%clk 0:01:50.6]} 36. Qa8+ {[%clk
0:00:30.3]} 36... Rf8 {[%clk 0:01:47.4]} 37. Qe4 {[%clk 0:00:31.6]} 37... Bg5
{[%clk 0:01:48]} 38. e6 {[%clk 0:00:27.8]} 38... Bxd2 {[%clk 0:01:45.4]} 39.
Bxg7+ {[%clk 0:00:25.3]} 39... Kxg7 {[%clk 0:01:45.6]} 40. Qe5+ {[%clk
0:00:26.7]} 40... Kh6 {[%clk 0:01:43.6]} 0-1

[Event "*** Titled Tuesday 3|2 Blitz (Late)"]
[Site "Chess.com"]
[Date "2017.01.03"]
[Round "5"]
[White "Ilja_Semjonovs"]
[Black "rithwik2002"]
[Result "1/2-1/2"]
[WhiteElo "2208"]
[BlackElo "1745"]
[TimeControl "180+2"]
[EndTime "17:57:28 PST"]
[Termination "Game drawn by agreement"]

1. d4 {[%clk 0:02:58.4]} 1... d5 {[%clk 0:02:55]} 2. Nf3 {[%clk 0:02:59.2]} 2...
e6 {[%clk 0:02:50.6]} 3. Bg5 {[%clk 0:03:00.3]} 3... Be7 {[%clk 0:02:42.3]} 4.
Bxe7 {[%clk 0:03:00.7]} 4... Qxe7 {[%clk 0:02:44.2]} 5. c3 {[%clk 0:03:01.5]}
5... Nf6 {[%clk 0:02:40.4]} 6. Nbd2 {[%clk 0:03:01.8]} 6... b6 {[%clk
0:02:36.9]} 7. e3 {[%clk 0:03:02.3]} 7... O-O {[%clk 0:02:32.9]} 8. Ne5 {[%clk
0:03:02.7]} 8... Bb7 {[%clk 0:02:32.3]} 9. Bd3 {[%clk 0:03:02.5]} 9... c5 {[%clk
0:02:03.3]} 10. O-O {[%clk 0:02:59.8]} 10... Nc6 {[%clk 0:02:02.5]} 11. f4
{[%clk 0:03:00.1]} 11... Nd7 {[%clk 0:01:57.7]} 12. Ndf3 {[%clk 0:02:52.6]}
12... Ndxe5 {[%clk 0:01:54.3]} 13. Nxe5 {[%clk 0:02:52.9]} 13... f6 {[%clk
0:01:41.5]} 14. Nxc6 {[%clk 0:02:10.6]} 14... Bxc6 {[%clk 0:01:40.8]} 15. Rf3
{[%clk 0:01:51]} 15... e5 {[%clk 0:01:35.3]} 16. fxe5 {[%clk 0:01:51.4]} 16...
fxe5 {[%clk 0:01:37.2]} 17. Rxf8+ {[%clk 0:01:52.6]} 17... Rxf8 {[%clk 0:01:33]}
18. Qh5 {[%clk 0:01:53.4]} 18... e4 {[%clk 0:01:29.8]} 19. Be2 {[%clk
0:01:48.1]} 19... Qf7 {[%clk 0:01:25.4]} 20. Qxf7+ {[%clk 0:01:43.4]} 20... Rxf7
{[%clk 0:01:27.3]} 21. b4 {[%clk 0:01:33.7]} 21... c4 {[%clk 0:01:22.4]} 22. a4
{[%clk 0:01:33.7]} 22... a5 {[%clk 0:01:20.8]} 23. b5 {[%clk 0:01:32.2]} 23...
Bd7 {[%clk 0:01:18]} 24. Rf1 {[%clk 0:01:30.6]} 24... Rxf1+ {[%clk 0:01:12.4]}
25. Kxf1 {[%clk 0:01:30.9]} 25... Bxb5 {[%clk 0:01:00.1]} 26. Bd1 {[%clk
0:01:08.9]} 26... Bd7 {[%clk 0:00:57.2]} 27. Ke1 {[%clk 0:01:09.5]} 27... Kf7
{[%clk 0:00:56.6]} 28. Kf2 {[%clk 0:01:04.1]} 28... Ke7 {[%clk 0:00:49.5]} 29.
Ke1 {[%clk 0:01:04.2]} 29... Kd6 {[%clk 0:00:46.2]} 30. Kd2 {[%clk 0:01:04.5]}
30... Kc6 {[%clk 0:00:43.2]} 31. Kc1 {[%clk 0:01:03.8]} 31... b5 {[%clk
0:00:39.5]} 32. axb5+ {[%clk 0:01:02.2]} 32... Kxb5 {[%clk 0:00:41.4]} 33. Kb2
{[%clk 0:01:02.7]} 33... Kb6 {[%clk 0:00:40.5]} 34. Ka3 {[%clk 0:01:03.2]} 34...
Be6 {[%clk 0:00:39]} 35. Ba4 {[%clk 0:01:01.3]} 35... Bf7 {[%clk 0:00:36.4]}
1/2-1/2

[Event "*** Titled Tuesday 3|2 Blitz (Late)"]
[Site "Chess.com"]
[Date "2017.01.03"]
[Round "5"]
[White "AndrBaryshpolets"]
[Black "MateusViageiro"]
[Result "0-1"]
[WhiteElo "2455"]
[BlackElo "2319"]
[TimeControl "180+2"]
[EndTime "17:58:08 PST"]
[Termination "MateusViageiro won by checkmate"]

1. d4 {[%clk 0:03:02]} 1... Nf6 {[%clk 0:03:00.2]} 2. c4 {[%clk 0:03:02.6]} 2...
e6 {[%clk 0:03:01.7]} 3. Nf3 {[%clk 0:03:02.1]} 3... d5 {[%clk 0:03:01.6]} 4.
Nc3 {[%clk 0:03:02.7]} 4... c6 {[%clk 0:03:00.8]} 5. Bg5 {[%clk 0:03:03.2]} 5...
h6 {[%clk 0:02:59.1]} 6. Bxf6 {[%clk 0:03:04.1]} 6... Qxf6 {[%clk 0:02:59.2]} 7.
e3 {[%clk 0:03:04.2]} 7... Bb4 {[%clk 0:02:51]} 8. Qb3 {[%clk 0:02:52.1]} 8...
Ba5 {[%clk 0:02:49.6]} 9. Bd3 {[%clk 0:02:48.8]} 9... O-O {[%clk 0:02:49.1]} 10.
O-O {[%clk 0:02:49.6]} 10... Nd7 {[%clk 0:02:44.3]} 11. Qc2 {[%clk 0:02:34.4]}
11... dxc4 {[%clk 0:02:43.7]} 12. Bxc4 {[%clk 0:02:35.6]} 12... e5 {[%clk
0:02:41.8]} 13. Ne4 {[%clk 0:02:21.7]} 13... Qe7 {[%clk 0:02:41.8]} 14. d5
{[%clk 0:02:20.1]} 14... cxd5 {[%clk 0:02:37]} 15. Bxd5 {[%clk 0:02:22]} 15...
Nf6 {[%clk 0:02:35.1]} 16. Nxf6+ {[%clk 0:02:16.6]} 16... Qxf6 {[%clk
0:02:35.6]} 17. Rac1 {[%clk 0:01:59.3]} 17... Bb6 {[%clk 0:02:29.8]} 18. Qc3
{[%clk 0:01:21.9]} 18... Re8 {[%clk 0:02:21]} 19. Rfd1 {[%clk 0:01:12.6]} 19...
Rb8 {[%clk 0:02:19.7]} 20. h3 {[%clk 0:01:01.1]} 20... Bf5 {[%clk 0:02:02]} 21.
Nd2 {[%clk 0:00:53.8]} 21... Qg6 {[%clk 0:01:57.5]} 22. Kh2 {[%clk 0:00:40.4]}
22... Rbc8 {[%clk 0:01:46.3]} 23. Qb4 {[%clk 0:00:40]} 23... Bc2 {[%clk
0:01:43.4]} 24. Re1 {[%clk 0:00:36]} 24... Rcd8 {[%clk 0:01:33.8]} 25. Bxb7
{[%clk 0:00:31.5]} 25... Rb8 {[%clk 0:01:32.1]} 26. Be4 {[%clk 0:00:21.6]} 26...
Bxe4 {[%clk 0:01:29.9]} 27. Qxe4 {[%clk 0:00:23.5]} 27... f5 {[%clk 0:01:27.9]}
28. Qd5+ {[%clk 0:00:22.6]} 28... Kh7 {[%clk 0:01:27.6]} 29. Nc4 {[%clk
0:00:24]} 29... Bc7 {[%clk 0:01:25.3]} 30. Red1 {[%clk 0:00:21.5]} 30... e4+
{[%clk 0:01:25.6]} 31. Kg1 {[%clk 0:00:22.5]} 31... f4 {[%clk 0:01:21.3]} 32.
exf4 {[%clk 0:00:21.7]} 32... Bxf4 {[%clk 0:01:21.5]} 33. Rc3 {[%clk 0:00:21.6]}
33... e3 {[%clk 0:00:53.3]} 34. fxe3 {[%clk 0:00:18.1]} 34... Bc7 {[%clk
0:00:47]} 35. Qf3 {[%clk 0:00:15.8]} 35... Rf8 {[%clk 0:00:43]} 36. Qg4 {[%clk
0:00:17]} 36... Qf6 {[%clk 0:00:35.4]} 37. Rc2 {[%clk 0:00:17.8]} 37... Kh8
{[%clk 0:00:34.8]} 38. b3 {[%clk 0:00:17.7]} 38... Rbd8 {[%clk 0:00:33.5]} 39.
Rxd8 {[%clk 0:00:17.9]} 39... Qf1# {[%clk 0:00:33.2]} 0-1